bitfinex/quotes_ETHUSD_20260121
["timestamp","ask_amount","ask_price","bid_price","bid_amount"]
[1769013354007,0.00697172,2947.4,2945.9,19.61340837]
[1769013354220,0.00697172,2947.4,2946.0,0.561]
[1769013355021,0.00697172,2947.4,2946.0,9.99076332]
[1769013355408,0.00697172,2947.4,2946.1,0.561]
[1769013355608,0.00697172,2947.4,2946.2,0.41915144]
[1769013355845,0.00697172,2947.4,2945.8,4.41305043]
[1769013356003,0.00697172,2947.4,2945.7,3.39475147]
[1769013356339,0.00697172,2947.4,2945.7,6.7895303]
[1769013356704,0.00697172,2947.4,2945.8,9.42976332]
[1769013356917,0.00697172,2947.4,2945.7,6.7895303]
[1769013357263,0.00697172,2947.4,2945.9,0.561]
[1769013358222,0.00697172,2947.4,2946.0,3.39443312]
[1769013358428,0.00697172,2947.4,2946.1,0.39554331]
[1769013359853,0.00697172,2947.4,2946.2,0.561]
[1769013360029,0.00697172,2947.4,2946.1,0.39554331]
[1769013360234,0.00697172,2947.4,2945.1,9.47398201]
[1769013360429,7.797207,2947.1,2945.6,3.39488973]
[1769013360632,9.98008847,2946.8,2944.8,0.002]
[1769013360834,0.00697172,2947.4,2944.8,0.9495982]
[1769013360835,9.98008847,2946.5,2944.8,0.9495982]
[1769013361027,33.26287647,2946.3,2944.8,0.002]
[1769013361220,17.071385,2946.7,2944.8,0.002]
[1769013361422,9.98008847,2946.4,2944.8,0.002]
[1769013361655,3.933869,2946.9,2944.8,0.002]
[1769013361954,23.686789,2946.8,2945.0,3.39553507]
[1769013362258,0.13497172,2947.4,2944.8,0.002]
[1769013362259,30.0,2946.4,2944.8,0.002]
[1769013362447,9.98008847,2946.1,2944.8,0.002]
[1769013362754,8.5968099,2946.7,2944.8,0.002]
[1769013362755,14.534746,2945.7,2944.8,0.002]
[1769013362956,9.98008847,2945.4,2943.8,0.003]
[1769013363148,9.172435,2945.3,2943.8,0.003]
[1769013363345,4.067221,2945.3,2943.8,3.39995431]
[1769013363655,9.98008847,2945.2,2943.8,0.003]
[1769013363857,9.98008847,2945.0,2943.8,0.003]
[1769013364164,17.239522,2944.7,2943.4,0.002]
[1769013364457,17.211895,2944.4,2943.4,0.002]
[1769013364759,18.336162,2944.5,2943.4,0.002]
[1769013365146,17.259042,2944.5,2943.4,0.002]
[1769013365655,10.188141,2944.6,2941.1,5.67587321]
[1769013365656,30.0,2944.1,2941.1,5.67587321]
[1769013365864,30.0,2944.1,2937.3,14.29502251]
[1769013365865,10.316141,2944.6,2938.4,3.40321263]
[1769013365866,0.05,2941.4,2938.4,3.40321263]
[1769013366164,0.177,2941.7,2937.3,6.96822858]
[1769013366165,12.70196,2940.0,2937.5,9.47398201]
[1769013366467,3.012661,2940.0,2937.6,6.80827886]
[1769013366679,33.57990547,2939.9,2937.6,3.40413943]
[1769013366966,0.0008,2938.6,2937.3,1.04235537]
[1769013367270,6.989666,2938.5,2937.3,0.54235537]
[1769013367470,0.0008,2938.6,2937.5,3.40425531]
[1769013367760,8.19779,2940.0,2937.5,6.80851062]
[1769013367967,39.98008847,2939.9,2937.5,3.40425531]
[1769013368224,30.0,2939.6,2937.3,3.94683865]
[1769013368368,39.98008847,2939.4,2937.3,7.35124911]
[1769013368665,3.39115248,2939.5,2937.4,9.47398201]
[1769013368832,2.758516,2940.0,2937.4,11.25748763]
[1769013369027,0.0008,2940.1,2937.6,9.47398201]
[1769013369233,6.983719,2940.0,2937.7,0.562]
[1769013369431,6.983719,2940.0,2937.6,9.47398201]
[1769013369658,6.983719,2940.0,2937.7,0.562]
[1769013369857,5.511951,2939.8,2937.8,1.0035982]
[1769013370243,5.511951,2939.8,2937.9,3.40379182]
[1769013370846,5.511951,2939.8,2937.5,0.002]
[1769013371168,30.0,2939.5,2937.5,0.002]
[1769013371371,1.0385795,2939.9,2936.9,0.0016]
[1769013371372,9.98008847,2939.2,2936.9,0.0016]
[1769013371670,0.0008,2937.2,2936.6,0.00194039]
[1769013372376,0.0008,2937.2,2936.1,0.002]
[1769013372577,0.0008,2937.5,2936.1,0.002]
[1769013372769,33.40228633,2939.2,2936.1,9.47598201]
[1769013372966,3.39115248,2939.1,2936.5,9.47398201]
[1769013373188,10.518775,2939.5,2936.7,9.47398201]
[1769013373348,9.333315,2939.5,2936.7,9.47398201]
[1769013373743,5.168159,2939.5,2936.7,9.47398201]
[1769013374084,15.963963,2940.0,2937.1,9.47398201]
[1769013374277,7.623639,2940.0,2937.3,9.47398201]
[1769013374481,3.36404,2939.8,2937.4,1.48906322]
[1769013374682,0.7624439,2939.9,2937.4,10.96304523]
[1769013374893,2.036741,2940.0,2937.4,10.96304523]
[1769013375076,9.98008847,2939.8,2937.4,1.48906322]
[1769013375392,30.0,2939.5,2937.1,3.40471894]
[1769013375884,30.0,2939.4,2937.1,3.40471894]
[1769013376088,30.0,2939.4,2937.1,6.80943788]
[1769013376584,9.92822269,2939.1,2936.5,3.4054146]
[1769013376791,39.92822269,2939.0,2936.5,6.8108292]
[1769013377082,30.0,2938.8,2936.6,0.68108292]
[1769013377281,5.125402,2938.8,2936.6,0.68108292]
[1769013377470,10.05622269,2939.4,2936.6,0.68108292]
[1769013377672,9.92822269,2939.2,2936.6,0.68108292]
[1769013377865,30.0,2939.8,2936.6,10.57919608]
[1769013378065,26.226881,2939.6,2936.8,9.89811316]
[1769013378267,30.0,2939.4,2936.8,9.89811316]
[1769013378586,3.39115248,2939.7,2936.9,6.80990158]
[1769013378587,30.0,2939.1,2936.9,6.80990158]
[1769013379164,30.0,2939.1,2936.8,3.40503096]
[1769013379381,30.0,2938.9,2936.8,3.40503096]
[1769013379593,30.0,2938.7,2936.4,3.40550873]
[1769013379895,12.531216,2938.7,2936.8,6.81003076]
[1769013380083,28.450334,2939.6,2936.9,9.89811316]
[1769013380270,10.507437,2939.4,2936.9,9.89811316]
[1769013380593,13.36984,2939.7,2937.1,9.89811316]
[1769013380821,30.0,2939.5,2937.1,9.89811316]
[1769013380966,16.040283,2939.3,2937.1,9.89811316]
[1769013381160,1.336984,2939.6,2937.1,9.89811316]
[1769013381161,4.954763,2939.1,2937.1,9.89811316]
[1769013381389,30.0,2939.8,2937.1,9.89811316]
[1769013381589,30.0,2939.6,2937.1,9.89811316]
[1769013381768,30.0,2939.4,2937.1,9.89811316]
[1769013381958,9.92822269,2939.1,2936.6,3.40529268]
[1769013382189,30.0,2938.8,2936.5,3.40541371]
[1769013382513,39.92822269,2938.7,2936.0,6.81192206]
[1769013382707,39.92822269,2938.6,2936.0,6.81192206]
[1769013382917,30.0,2938.4,2936.2,0.68139221]
[1769013383225,0.01203037,2938.3,2936.2,0.68139221]
[1769013383407,30.0,2938.4,2936.2,0.68139221]
[1769013383563,9.92822269,2938.1,2935.2,9.89811316]
[1769013383764,39.92822269,2937.9,2935.7,3.40624663]
[1769013383995,30.0,2937.8,2935.2,9.89811316]
[1769013384206,30.0,2937.8,2935.9,3.40599793]
[1769013384363,9.92822269,2940.0,2936.2,9.89811316]
[1769013384700,3.0177,2941.6,2938.2,0.029644]
[1769013384701,7.682796,2939.7,2938.2,0.029644]
[1769013384881,9.92822269,2940.5,2936.5,17.87620081]
[1769013384882,2.98447,2940.0,2938.6,0.152259]
[1769013385486,0.01283037,2940.4,2939.2,0.152259]
[1769013385689,0.01283037,2940.4,2938.2,9.89811316]
[1769013385690,0.0008,2940.4,2938.9,0.152259]
[1769013385887,3.0177,2941.6,2937.4,0.563]
[1769013385888,3.0177,2941.6,2940.0,0.152259]
[1769013386088,0.01203037,2941.5,2940.0,0.152259]
[1769013386396,3.39927935,2941.8,2939.3,3.40214963]
[1769013386605,30.0,2941.6,2939.4,3.40201124]
[1769013386804,30.0,2941.4,2938.7,3.40281083]
[1769013387016,30.0,2941.2,2938.8,0.152259]
[1769013387182,30.0,2941.0,2938.8,3.40271628]
[1769013387383,30.0,2941.0,2938.6,3.40296532]
[1769013387584,30.0,2940.8,2937.9,9.89811316]
[1769013387888,30.0,2940.7,2938.6,0.152259]
[1769013388408,6.80133306,2940.6,2938.8,0.152259]
[1769013388611,6.80133306,2940.6,2938.8,0.69581498]
[1769013388612,2.341207,2940.5,2938.8,0.69581498]
[1769013388923,22.67399,2940.3,2938.3,0.152259]
[1769013389123,10.06825306,2940.2,2937.3,3.40448576]
[1769013389327,10.05622269,2939.8,2937.1,3.40467489]
[1769013389535,30.0,2939.5,2937.1,3.40469661]
[1769013389682,0.128,2939.6,2936.7,3.40514004]
[1769013389890,30.0,2939.5,2937.4,3.4043301]
[1769013390119,30.0,2939.5,2937.1,3.40462725]
[1769013390305,10.05622269,2939.2,2936.8,0.340514]
[1769013390597,3.284169,2938.8,2936.5,9.89811316]
[1769013390793,3.284169,2938.8,2936.4,6.81106116]
[1769013390982,7.097796,2938.6,2936.4,10.21659174]
[1769013391194,4.742102,2938.8,2936.5,9.89811316]
[1769013391435,1.06192227,2939.6,2936.5,11.66927078]
[1769013391731,0.01203037,2939.5,2936.9,9.89811316]
[1769013391941,30.0,2940.3,2936.9,9.89811316]
[1769013392102,0.01203037,2940.2,2936.9,9.89811316]
[1769013392303,30.0,2939.9,2936.9,9.89811316]
[1769013392493,6.8032328,2939.8,2937.0,10.21450458]
[1769013392688,30.0,2939.6,2937.0,23.5174526]
[1769013393092,5.20474581,2939.1,2935.8,3.40614757]
[1769013393297,39.92822269,2938.8,2935.6,9.90011316]
[1769013393531,5.20474581,2939.1,2936.9,3.40494914]
[1769013393532,30.0,2939.0,2936.9,3.40494914]
[1769013393832,0.128,2939.1,2936.8,3.40506618]
[1769013393990,30.0,2938.9,2936.9,0.34050662]
[1769013394191,3.02483037,2939.0,2936.9,0.34050662]
[1769013394192,30.0,2938.7,2936.9,0.34050662]
[1769013394409,30.0,2938.9,2936.7,3.40514447]
[1769013394722,33.40274942,2938.8,2936.6,6.81058746]
[1769013394937,28.066612,2938.7,2936.6,10.2158861]
[1769013395294,28.066612,2938.7,2936.6,6.81058746]
[1769013395514,27.476912,2938.7,2936.8,0.002]
[1769013395798,25.616578,2938.5,2936.8,0.68325875]
[1769013396014,30.0,2938.3,2936.8,0.68325875]
[1769013396338,3.08796614,2938.6,2936.8,0.68325875]
[1769013396339,30.0,2938.5,2936.8,0.68325875]
[1769013396489,3.40367597,2938.0,2936.8,0.002]
[1769013396693,8.169999,2937.9,2936.8,0.002]
[1769013397196,2.994,2937.9,2936.8,0.002]
[1769013397526,2.994,2937.9,2936.5,0.002]
[1769013398635,30.0,2938.2,2936.5,0.002]
[1769013398927,2.973248,2938.0,2936.5,0.002]
[1769013399131,10.415724,2938.1,2936.5,0.002]
[1769013399303,6.203483,2938.1,2936.5,0.002]
[1769013399718,0.01203037,2938.4,2936.5,9.90011316]
[1769013399915,0.00697172,2938.7,2936.5,9.90011316]
[1769013400100,0.00697172,2938.7,2936.7,9.89811316]
[1769013400552,4.981673,2938.6,2936.8,10.21520019]
[1769013400834,0.01203037,2938.5,2936.8,6.81013346]
[1769013401039,0.00697172,2938.7,2936.8,10.21520019]
[1769013401251,3.128401,2938.6,2936.8,6.81013346]
[1769013401401,24.156601,2938.4,2936.9,0.68101335]
[1769013401595,10.653486,2938.4,2936.9,0.68101335]
[1769013402045,5.293648,2938.4,2936.9,0.68101335]
[1769013402597,5.293648,2938.4,2937.0,3.40483486]
[1769013402900,0.31353727,2938.5,2937.0,6.80966972]
[1769013403101,10.460937,2938.6,2937.1,0.68096697]
[1769013403300,9.098725,2938.6,2937.1,0.68096697]
[1769013403997,0.00697172,2938.7,2937.1,0.68096697]
[1769013404513,0.00697172,2938.7,2937.2,3.40460302]
[1769013404734,2.431114,2938.6,2937.2,3.40460302]
[1769013405028,0.24380857,2938.6,2937.3,0.2904603]
[1769013405217,0.00697172,2938.7,2937.3,0.2904603]
[1769013405731,3.40983791,2938.7,2937.3,0.2904603]
[1769013405954,0.01203037,2938.6,2937.3,0.2904603]
[1769013406162,3.40986348,2938.7,2937.3,0.2904603]
[1769013406315,7.058285,2938.6,2937.3,0.2904603]
[1769013406514,1.04801788,2938.6,2937.3,0.2904603]
[1769013406714,3.11602,2938.6,2937.3,3.69490798]
[1769013406925,0.00697172,2938.7,2937.4,10.79010252]
[1769013407141,2.034,2941.9,2937.4,10.79010252]
[1769013407142,30.0,2940.9,2937.4,10.79010252]
[1769013407445,30.0,2940.9,2937.3,13.90836931]
[1769013407446,30.0,2940.7,2937.6,12.49559621]
[1769013407649,30.0,2940.5,2937.8,10.79010252]
[1769013408050,4.550125,2940.5,2937.8,10.79010252]
[1769013408216,30.0,2940.9,2937.8,12.50275589]
[1769013408418,30.0,2940.9,2937.8,10.79010252]
[1769013408646,30.0,2940.7,2938.0,10.79010252]
[1769013408846,30.0,2940.5,2938.1,0.99001132]
[1769013409056,30.0,2940.3,2938.1,0.99001132]
[1769013409256,30.0,2940.1,2938.1,0.99001132]
[1769013409577,30.0,2940.1,2937.8,3.40387741]
[1769013409578,30.0,2939.9,2937.8,3.40387741]
[1769013409722,30.0,2939.7,2937.6,3.40413503]
[1769013409917,30.0,2939.5,2937.8,3.40390664]
[1769013410155,11.767347,2939.4,2937.4,10.79010252]
[1769013410349,0.128,2940.0,2937.7,3.40400099]
[1769013410550,30.0,2939.8,2937.8,0.3404001]
[1769013410718,30.0,2939.8,2937.8,3.40390522]
[1769013411165,30.0108342,2939.7,2937.2,3.40460053]
[1769013411332,30.0,2939.4,2936.8,0.002]
[1769013411521,10.39028006,2939.5,2936.8,0.002]
[1769013411522,30.0,2939.2,2936.8,0.002]
[1769013411722,14.748775,2939.0,2937.3,3.40447288]
[1769013411936,11.380421,2938.8,2937.4,3.74479588]
[1769013412137,10.219292,2938.8,2937.4,0.34044729]
[1769013412437,11.87096,2938.8,2937.2,3.40454107]
[1769013412752,11.87096,2938.8,2936.8,6.81213346]
[1769013413125,10.893648,2938.8,2936.8,10.21720019]
[1769013413351,1.47596092,2938.9,2936.9,10.79010252]
[1769013413547,0.128,2939.8,2936.9,10.79010252]
[1769013413754,0.128,2940.0,2936.9,10.79010252]
[1769013414056,30.0,2939.9,2936.9,10.79010252]
[1769013414257,40.26228006,2939.7,2936.9,10.79010252]
[1769013414460,40.26228006,2939.3,2936.8,6.81213346]
[1769013414660,30.0,2939.1,2936.8,0.002]
[1769013414858,30.0,2938.9,2936.8,0.002]
[1769013415065,30.0,2939.2,2936.8,0.002]
[1769013415267,30.0,2939.2,2936.8,10.79210252]
[1769013415559,3.39115248,2939.6,2936.8,10.79210252]
[1769013415560,2.921923,2939.0,2936.9,11.86931277]
[1769013415762,30.0,2939.6,2936.9,11.86931277]
[1769013415942,30.0,2939.4,2936.9,11.86931277]
[1769013416150,0.0108342,2939.3,2936.9,11.86931277]
[1769013416345,12.030302,2939.4,2936.9,11.86931277]
[1769013416568,30.0,2939.2,2937.0,1.18713128]
[1769013416884,1.89425222,2939.3,2937.0,1.18713128]
[1769013416885,30.0,2939.0,2937.1,3.40471894]
[1769013417103,8.442136,2939.0,2937.2,10.79010252]
[1769013417286,2.327676,2939.0,2937.2,10.79010252]
[1769013417449,21.064335,2938.8,2937.1,3.40471894]
[1769013417649,22.064335,2938.6,2937.1,4.20438762]
[1769013417863,22.064335,2938.6,2937.0,3.40481104]
[1769013418084,13.538818,2938.6,2937.1,3.40471894]
[1769013418291,13.538818,2938.6,2936.8,0.002]
[1769013418512,30.0,2938.3,2936.8,0.002]
[1769013418812,30.0,2938.0,2936.8,0.002]
[1769013418987,18.648902,2937.8,2936.8,0.002]
[1769013419576,18.648902,2937.8,2935.9,0.003]
[1769013419893,18.648902,2937.8,2936.0,3.40592376]
[1769013420210,16.135717,2937.8,2935.9,0.003]
[1769013420521,40.13786688,2937.6,2935.9,0.00100191]
[1769013420703,10.21311363,2937.4,2935.4,3.97067203]
[1769013420877,2.01150585,2937.3,2936.0,0.002]
[1769013421070,17.585072,2937.4,2936.0,0.002]
[1769013421276,20.35070862,2937.5,2936.0,0.002]
[1769013421484,30.0,2937.4,2936.0,0.002]
[1769013421690,5.351267,2937.4,2936.0,0.002]
[1769013421885,8.264077,2937.4,2936.0,0.002]
[1769013422111,1.16683576,2937.3,2936.0,0.002]
[1769013422425,12.2453838,2938.7,2936.0,9.96211779]
[1769013422426,10.015638,2938.6,2936.0,9.96211779]
[1769013422580,10.060952,2938.4,2936.0,9.96211779]
[1769013422924,2.043715,2938.2,2936.2,9.96011779]
[1769013423137,9.760071,2938.0,2936.0,0.002]
[1769013423438,5.187471,2937.8,2936.0,0.002]
[1769013423618,2.360473,2937.8,2936.0,6.81396572]
[1769013423799,0.0108342,2937.7,2936.0,0.002]
[1769013424129,23.947954,2937.6,2936.0,0.002]
[1769013424339,10.13786688,2937.6,2936.0,0.002]
[1769013424650,10.77298535,2938.3,2935.4,0.00100574]
[1769013424651,30.0,2937.2,2935.4,0.00100574]
[1769013424791,30.0,2937.0,2935.4,0.00100574]
[1769013425607,29.9966,2937.0,2935.4,0.00100574]
[1769013426024,29.9966,2936.8,2935.4,0.00100574]
[1769013426441,0.563,2936.9,2935.4,0.00100574]
[1769013426734,3.80172268,2936.9,2935.4,0.00100574]
[1769013426898,8.95595,2936.8,2935.4,0.00100574]
[1769013427101,2.412456,2936.8,2935.4,0.00100574]
[1769013427333,11.435849,2936.8,2935.4,0.00100574]
[1769013427494,3.396045,2936.8,2935.4,0.00100574]
[1769013427697,10.13786688,2936.5,2933.3,9.96171779]
[1769013427922,0.128,2936.6,2933.3,9.96171779]
[1769013427923,16.474838,2935.5,2933.3,9.96171779]
[1769013428229,16.474838,2935.5,2934.1,3.40811426]
[1769013428230,10.259478,2935.5,2934.1,3.40811426]
[1769013428444,0.0008,2935.6,2933.3,13.37082913]
[1769013428445,0.10139999,2934.3,2933.3,13.37082913]
[1769013428650,0.00080008,2934.6,2933.4,11.2972007]
[1769013429110,0.00080008,2934.6,2933.4,14.70612759]
[1769013429311,0.00080008,2934.6,2933.4,11.2972007]
[1769013429517,0.00080008,2934.6,2933.4,14.70618401]
[1769013430035,0.0008,2935.6,2933.5,9.96011779]
[1769013430341,2.42702,2935.5,2933.7,9.96011779]
[1769013430547,2.42702,2935.5,2933.6,1.04957851]
[1769013430710,2.42702,2935.5,2933.3,0.0016]
[1769013430908,2.42702,2935.5,2933.3,9.96171779]
[1769013431314,10.26586688,2935.0,2933.3,0.0016]
[1769013431549,30.0,2934.9,2933.3,0.0016]
[1769013431910,0.128,2935.4,2933.3,0.0016]
[1769013432165,30.0,2935.2,2933.3,0.0016]
[1769013432354,40.13786688,2935.1,2933.3,0.0016]
[1769013432552,30.0,2935.0,2933.3,0.0016]
[1769013433045,30.0,2935.2,2933.5,0.002]
[1769013433246,30.0,2935.0,2933.5,0.002]
[1769013433412,10.26586688,2935.0,2933.3,0.0016]
[1769013433618,30.0,2934.8,2933.3,0.0036]
[1769013434010,17.188378,2934.8,2933.3,0.0036]
[1769013434615,2.78371,2934.8,2933.3,0.0036]
[1769013434852,3.40736298,2934.9,2933.3,0.0036]
[1769013435046,30.0,2934.8,2933.3,0.0036]
[1769013435245,30.0,2934.6,2933.3,0.0036]
[1769013435449,4.807616,2934.6,2933.3,0.0036]
[1769013435751,30.0,2935.2,2933.3,0.0036]
[1769013435957,30.0,2935.0,2933.3,0.0036]
[1769013436167,10.31627964,2934.7,2932.1,0.002]
[1769013436329,30.0,2933.5,2932.2,1.03505134]
[1769013436523,30.0,2933.5,2931.0,0.00650103]
[1769013436821,30.0,2933.4,2931.3,3.41145551]
[1769013437046,30.0,2933.4,2931.4,3.4112603]
[1769013437245,0.0008,2933.6,2932.0,10.34851338]
[1769013438019,0.0008,2933.6,2931.9,8.192353]
[1769013438221,9.021108,2933.5,2931.9,1.37086777]
[1769013438461,7.729375,2933.5,2931.9,1.37086777]
[1769013438767,5.588669,2933.5,2931.9,1.37086777]
[1769013439368,0.0008,2933.6,2931.7,0.0016]
[1769013439369,30.0,2933.2,2931.7,0.0016]
[1769013439688,0.03177602,2931.9,2931.7,0.0016]
[1769013439839,0.02877602,2931.9,2931.7,0.0016]
[1769013440489,0.02877602,2931.9,2930.6,10.34851338]
[1769013440700,0.02877602,2931.9,2930.7,3.43301706]
[1769013440870,0.02877602,2931.9,2930.7,0.0209362]
[1769013441295,28.655176,2931.8,2930.7,0.0209362]
[1769013441598,24.26694,2931.5,2929.7,0.0016]
[1769013441739,30.0,2931.4,2929.7,0.0016]
[1769013442048,30.0,2931.4,2929.7,3.41488954]
[1769013442260,2.233031,2931.4,2929.9,3.4129861]
[1769013442574,3.43959256,2931.9,2930.3,10.34851338]
[1769013442575,0.02877602,2931.9,2930.3,10.34851338]
[1769013442878,0.02877602,2931.9,2930.5,6.82477392]
[1769013443339,0.02877602,2931.9,2930.5,3.41238696]
[1769013443576,0.02877602,2931.9,2930.5,6.82477392]
[1769013443784,0.02877602,2931.9,2930.6,10.34851338]
[1769013444094,0.0008,2932.3,2930.5,13.64954784]
[1769013444095,0.0008,2933.6,2930.8,12.07866634]
[1769013444308,0.0008,2933.6,2931.2,10.34851338]
[1769013444623,0.0008,2933.6,2931.3,10.34851338]
[1769013444832,0.0008,2933.6,2932.0,10.34851338]
[1769013445622,0.0008,2933.9,2932.0,10.34851338]
[1769013445771,0.0008,2933.9,2931.9,17.0537876]
[1769013445772,3.40657468,2935.5,2932.3,10.34851338]
[1769013445978,30.0,2935.3,2932.3,10.34851338]
[1769013446187,26.5051,2935.1,2932.3,10.34851338]
[1769013446391,15.130436,2934.9,2932.3,10.34851338]
[1769013446720,30.0,2934.7,2932.4,1.03485134]
[1769013447017,30.0,2934.7,2932.5,6.82011934]
[1769013447243,8.246319,2934.7,2932.5,6.82011934]
[1769013447520,6.900079,2934.5,2932.5,3.41005967]
[1769013447735,26.868391,2934.3,2932.4,1.03485134]
[1769013447926,30.0,2934.5,2932.0,3.41059901]
[1769013448226,0.0108342,2934.4,2931.6,10.34851338]
[1769013448396,30.0,2934.3,2931.6,10.34851338]
[1769013448609,0.83291356,2934.6,2930.9,10.34851338]
[1769013448610,30.0,2934.1,2930.9,10.34851338]
[1769013448813,30.0,2933.9,2931.0,11.72456334]
[1769013449019,0.0108342,2933.8,2931.2,10.34851338]
[1769013449226,14.343119,2934.5,2931.2,10.34851338]
[1769013449437,17.75085455,2934.5,2931.4,10.34851338]
[1769013449589,16.592157,2934.4,2931.4,10.34851338]
[1769013449802,8.253731,2934.2,2931.6,10.34851338]
[1769013449999,8.253731,2934.2,2931.5,1.01061146]
[1769013450000,0.83291356,2934.6,2931.8,10.34851338]
[1769013450226,10.31707964,2935.6,2931.8,10.34851338]
[1769013450431,10.31707964,2935.6,2931.7,5.21299653]
[1769013450432,30.0,2935.4,2932.2,10.34851338]
[1769013450598,30.0,2935.4,2932.4,10.34851338]
[1769013450798,30.0,2935.4,2932.6,10.34851338]
[1769013451020,30.0,2935.5,2932.6,10.34851338]
[1769013451327,14.367633,2935.3,2932.8,10.34851338]
[1769013451538,7.244109,2935.5,2933.2,10.34851338]
[1769013451711,0.0008,2935.6,2933.2,10.34851338]
[1769013451910,0.0008,2935.6,2933.3,0.564]
[1769013452110,0.0008,2935.6,2933.4,10.34851338]
[1769013452446,0.0008,2935.6,2933.6,10.34851338]
[1769013452804,6.81361358,2935.3,2933.5,1.01061146]
[1769013453003,6.650599,2935.2,2932.5,10.91251338]
[1769013453232,6.650599,2935.2,2932.6,10.34851338]
[1769013453655,6.650599,2935.2,2932.8,10.34851338]
[1769013454326,6.650599,2935.2,2933.3,3.40910619]
[1769013454559,0.0008,2935.6,2933.5,6.81777381]
[1769013454560,1.00574058,2935.1,2933.5,6.81777381]
[1769013454763,30.0,2935.5,2933.5,6.81777381]
[1769013454949,26.727358,2935.5,2933.5,6.81777381]
[1769013455275,26.727358,2935.5,2933.4,0.34091062]
[1769013455276,14.04893,2935.5,2933.4,0.34091062]
[1769013455424,30.0,2935.3,2932.9,10.34851338]
[1769013455630,30.0,2935.4,2933.2,3.40916114]
[1769013455952,10.31627964,2935.1,2932.2,10.34851338]
[1769013456330,40.31627964,2934.9,2932.4,3.41014566]
[1769013456660,30.0,2934.7,2932.5,3.75099457]
[1769013456860,30.0,2934.5,2932.5,0.34101457]
[1769013457069,30.0,2934.2,2932.5,0.34101457]
[1769013457270,30.0,2934.2,2932.3,3.41029036]
[1769013457574,30.0,2934.2,2931.9,10.34851338]
[1769013458067,30.0,2934.2,2932.2,3.41037096]
[1769013458372,30.0,2934.2,2932.0,3.41057557]
[1769013458599,30.0,2934.2,2931.2,3.41152136]
[1769013458600,30.0,2934.0,2931.3,10.34851338]
[1769013458801,30.0,2933.8,2931.5,10.34851338]
[1769013459014,30.0,2934.7,2932.2,13.75887151]
[1769013459312,30.0,2934.7,2932.3,10.34851338]
[1769013459859,6.384707,2934.7,2932.3,10.34851338]
[1769013460295,3.40692286,2935.2,2932.3,10.34851338]
[1769013460616,22.820621,2935.0,2932.5,10.34851338]
[1769013460898,9.322911,2934.8,2932.5,10.34851338]
[1769013461108,0.0108342,2934.7,2932.7,10.34851338]
[1769013461389,15.226572,2934.6,2932.7,10.34851338]
[1769013461571,3.40716377,2935.0,2932.7,10.34851338]
[1769013461572,2.170562,2935.0,2932.7,10.34851338]
[1769013461773,0.25113543,2934.9,2932.9,10.34851338]
[1769013461985,9.585351,2935.2,2932.9,10.34851338]
[1769013462166,0.0008,2935.6,2932.9,10.34851338]
[1769013462394,6.521212,2935.2,2932.9,10.34851338]
[1769013462598,24.029608,2935.0,2932.9,10.34851338]
[1769013462799,30.0,2934.8,2932.8,1.03485134]
[1769013462995,6.81431004,2935.0,2932.3,13.75880564]
[1769013463227,30.0,2934.9,2932.3,20.57939016]
[1769013463530,30.0,2934.9,2932.4,10.34851338]
[1769013463727,0.0108342,2934.8,2932.4,10.34851338]
[1769013464034,2.640045,2934.6,2932.5,10.34851338]
[1769013464227,2.004072,2935.1,2932.5,10.34851338]
[1769013464409,30.0,2934.9,2932.5,10.34851338]
[1769013464588,0.34078068,2935.2,2932.6,10.91251338]
[1769013464787,30.0,2935.2,2932.6,10.91251338]
[1769013465024,3.40703894,2935.1,2932.7,6.81965424]
[1769013465321,30.0,2934.9,2932.7,6.81965424]
[1769013465522,21.415617,2934.7,2932.7,3.40982712]
[1769013465819,15.61277,2934.5,2932.7,3.40982712]
[1769013466021,5.935309,2934.3,2932.8,1.37583405]
[1769013466208,30.0,2935.0,2932.8,1.37583405]
[1769013466410,10.313875,2934.8,2932.8,1.37583405]
[1769013466719,36.81387215,2935.2,2932.8,11.71021367]
[1769013466925,30.0,2935.0,2932.8,11.71021367]
[1769013467110,30.0,2934.8,2932.9,7.83001655]
[1769013467422,6.41924438,2934.9,2932.8,10.33437962]
[1769013467423,10.592117,2934.6,2932.8,3.40963252]
[1769013467622,10.592117,2934.6,2932.6,3.40993278]
[1769013467623,12.284197,2934.4,2932.2,10.33437962]
[1769013467802,30.0,2934.8,2932.2,10.33437962]
[1769013468228,30.0,2934.8,2932.6,3.40994111]
[1769013468527,16.051171,2934.6,2932.2,10.33437962]
[1769013468698,20.424391,2934.4,2932.3,1.03343796]
[1769013469033,20.424391,2934.4,2932.4,6.82035192]
[1769013469203,1.6051171,2934.5,2932.5,10.33437962]
[1769013469397,0.564,2935.5,2932.5,10.33437962]
[1769013469398,12.402818,2935.2,2932.5,10.33437962]
[1769013469595,0.0108342,2935.1,2932.5,10.33437962]
[1769013469805,2.33607574,2935.0,2932.6,12.25160308]
[1769013470011,0.0108342,2934.9,2932.6,12.25160308]
[1769013470355,0.001,2935.3,2931.3,10.33437962]
[1769013470356,30.0,2934.1,2931.3,10.33437962]
[1769013470639,40.94710521,2933.9,2931.3,10.33437962]
[1769013470834,40.94710521,2933.9,2932.8,0.002]
[1769013470835,30.0,2933.8,2932.8,0.002]
[1769013470999,3.40866482,2933.7,2931.4,17.1570582]
[1769013471195,2.590655,2933.5,2932.5,0.002]
[1769013471406,15.4154,2933.5,2932.5,0.002]
[1769013471627,30.0,2933.7,2932.5,0.002]
[1769013471828,0.0108342,2933.6,2932.5,0.002]
[1769013472130,0.128,2934.3,2932.5,0.002]
[1769013472131,30.0,2934.2,2932.5,0.002]
[1769013472425,3.34080407,2934.1,2932.5,0.002]
[1769013472740,0.0108342,2934.1,2932.5,0.002]
[1769013473035,5.940236,2934.0,2932.5,0.002]
[1769013473237,0.0108342,2933.9,2932.5,0.002]
[1769013473599,3.4073737,2934.9,2932.5,0.002]
[1769013473600,33.40715502,2935.0,2932.5,10.33637962]